bitfinex/quotes_BTCUSD_20251205
["timestamp","ask_amount","ask_price","bid_price","bid_amount"]
[1764970350107,0.23473653,89462.0,89461.0,0.0747884]
[1764970351121,0.23473653,89462.0,89461.0,0.0504284]
[1764970352153,0.23473653,89462.0,89461.0,0.0224884]
[1764970352762,0.23473653,89462.0,89461.0,8.84e-05]
[1764970353873,0.57537653,89462.0,89461.0,8.84e-05]
[1764970354011,0.59777653,89462.0,89461.0,8.84e-05]
[1764970354877,0.60825187,89462.0,89461.0,8.84e-05]
[1764970356279,0.59777653,89462.0,89461.0,8.84e-05]
[1764970356457,0.63235536,89462.0,89461.0,8.84e-05]
[1764970357261,0.62188963,89462.0,89461.0,8.84e-05]
[1764970357491,0.63235244,89462.0,89461.0,8.84e-05]
[1764970359277,0.62188963,89462.0,89461.0,8.84e-05]
[1764970360116,0.72775239,89462.0,89461.0,8.84e-05]
[1764970361213,0.59777653,89462.0,89461.0,8.84e-05]
[1764970361631,0.58013653,89462.0,89461.0,8.84e-05]
[1764970361829,0.59777653,89462.0,89461.0,8.84e-05]
[1764970362824,0.62186114,89462.0,89461.0,8.84e-05]
[1764970363238,0.62185941,89462.0,89461.0,8.84e-05]
[1764970365258,0.59777653,89462.0,89461.0,8.84e-05]
[1764970365478,0.58013653,89462.0,89461.0,8.84e-05]
[1764970365811,0.59777653,89462.0,89461.0,8.84e-05]
[1764970373424,0.62185518,89462.0,89461.0,8.84e-05]
[1764970374150,0.69922014,89462.0,89461.0,8.84e-05]
[1764970374471,0.54657609,89455.0,89427.0,0.01683322]
[1764970374667,0.58110594,89455.0,89427.0,0.01683322]
[1764970375031,0.58110594,89455.0,89413.0,0.01683322]
[1764970375032,0.2236636,89420.0,89413.0,0.01683322]
[1764970375373,0.22367611,89415.0,89414.0,0.03418]
[1764970375793,0.22367611,89415.0,89414.0,0.0224]
[1764970376401,0.22368362,89412.0,89411.0,0.01178]
[1764970377625,0.01118393,89414.0,89411.0,0.05068]
[1764970377820,0.23486254,89414.0,89413.0,0.0224]
[1764970378246,0.22368362,89412.0,89411.0,0.03418]
[1764970378364,0.22368362,89412.0,89411.0,0.0234]
[1764970378566,0.22368362,89412.0,89411.0,0.03961]
[1764970378882,0.22368362,89412.0,89411.0,0.0623]
[1764970379279,0.22368362,89412.0,89411.0,0.03961]
[1764970379466,0.22368362,89412.0,89411.0,0.0224]
[1764970380360,0.22369362,89408.0,89407.0,0.0224]
[1764970382411,0.22370864,89402.0,89401.0,0.01178]
[1764970382551,0.22370864,89402.0,89401.0,0.0224]
[1764970383401,0.22370864,89402.0,89400.0,0.0004]
[1764970383402,0.22371114,89401.0,89400.0,0.0228]
[1764970384723,0.22371114,89401.0,89400.0,0.06317]
[1764970385141,0.22371114,89401.0,89400.0,0.06417]
[1764970385481,0.22371114,89401.0,89400.0,0.0238]
[1764970386112,0.31767684,89401.0,89390.0,0.0004]
[1764970386314,0.54834904,89391.0,89390.0,0.0004]
[1764970387157,0.57734904,89391.0,89390.0,0.0004]
[1764970388050,0.57734904,89391.0,89390.0,0.0014]
[1764970388660,0.57734904,89391.0,89390.0,0.0004]
[1764970388851,0.58034904,89391.0,89390.0,0.0004]
[1764970389487,0.68648544,89391.0,89390.0,0.0004]
[1764970389682,0.69148544,89391.0,89390.0,0.0004]
[1764970390719,0.58534904,89391.0,89390.0,0.0004]
[1764970394755,0.56770904,89391.0,89390.0,0.00051873]
[1764970394872,0.58534904,89391.0,89390.0,0.00051873]
[1764970395071,0.56770904,89391.0,89390.0,0.00245512]
[1764970395284,0.58534904,89391.0,89390.0,0.00245512]
[1764970395485,0.6950541,89391.0,89390.0,0.00245512]
[1764970397764,0.5467612,89381.0,89370.0,0.0004]
[1764970398018,0.5644012,89381.0,89380.0,0.00048841]
[1764970398361,0.5757612,89381.0,89380.0,0.00048841]
[1764970398538,0.68546626,89381.0,89380.0,0.00048841]
[1764970399187,0.5581212,89381.0,89380.0,0.00048841]
[1764970399396,0.5757612,89381.0,89380.0,0.00048841]
[1764970399796,0.5654012,89381.0,89380.0,0.00048841]
[1764970399997,0.5664012,89381.0,89380.0,0.00048841]
[1764970403483,0.5664012,89381.0,89380.0,0.00079111]
[1764970409341,0.57683738,89381.0,89380.0,0.00079111]
[1764970410042,0.55919738,89381.0,89380.0,0.00079111]
[1764970410280,0.57683738,89381.0,89380.0,0.00079111]
[1764970410623,0.57683871,89381.0,89380.0,0.00079111]
[1764970411231,0.68654377,89381.0,89380.0,0.00079111]
[1764970411434,0.69790377,89381.0,89380.0,0.00079111]
[1764970412101,0.58819871,89381.0,89380.0,0.00079111]
[1764970412641,0.61226945,89381.0,89380.0,0.00079111]
[1764970415401,0.59462945,89381.0,89380.0,0.00079111]
[1764970415605,0.61226945,89381.0,89380.0,0.00079111]
[1764970416425,0.58819871,89381.0,89380.0,0.00079111]
[1764970418613,0.57055871,89381.0,89380.0,0.00079111]
[1764970418819,0.58819871,89381.0,89380.0,0.00079111]
[1764970419231,0.61833446,89381.0,89380.0,0.00079111]
[1764970419607,0.67564322,89381.0,89380.0,0.00079111]
[1764970420395,0.61833446,89381.0,89380.0,0.00079111]
[1764970421942,0.60069446,89381.0,89380.0,0.00079111]
[1764970422156,0.58819871,89381.0,89380.0,0.00079111]
[1764970424540,0.58824786,89381.0,89380.0,0.00079111]
[1764970425330,0.6283069,89381.0,89380.0,0.00079111]
[1764970425890,0.58824786,89381.0,89380.0,0.00079111]
[1764970428617,0.69795292,89381.0,89380.0,0.00079111]
[1764970429021,0.58824786,89381.0,89380.0,0.00079111]
[1764970430242,0.58824786,89381.0,89380.0,0.0230951]
[1764970430462,0.58824786,89381.0,89380.0,0.00079111]
[1764970433031,0.55924786,89381.0,89380.0,0.0230951]
[1764970433222,0.2257612,89381.0,89380.0,0.03936111]
[1764970433428,0.2257612,89381.0,89380.0,0.0616651]
[1764970434260,0.002,89381.0,89380.0,0.2854288]
[1764970435284,0.001,89381.0,89380.0,0.2854288]
[1764970435424,0.23493643,89386.0,89382.0,0.22375748]
[1764970435620,0.23493643,89386.0,89385.0,0.06623721]
[1764970436065,0.23493643,89386.0,89385.0,0.08955721]
[1764970436467,0.0111873,89387.0,89386.0,0.02230399]
[1764970436795,0.23493409,89387.0,89386.0,0.06087399]
[1764970437435,0.23493048,89389.0,89386.0,0.28462267]
[1764970437611,0.23493048,89389.0,89388.0,0.03755399]
[1764970438016,0.23493048,89389.0,89388.0,0.06087399]
[1764970441394,0.01118705,89389.0,89388.0,0.06087399]
[1764970441616,0.01118668,89392.0,89388.0,0.26231367]
[1764970441868,0.01118568,89400.0,89395.0,0.0111863]
[1764970442072,0.01118568,89400.0,89399.0,0.06623721]
[1764970442478,0.23489932,89400.0,89399.0,0.09115721]
[1764970442921,0.22371364,89400.0,89399.0,0.09115721]
[1764970446291,0.22371364,89400.0,89399.0,0.03415399]
[1764970448145,0.31223064,89400.0,89399.0,0.03415399]
[1764970448548,0.22373366,89392.0,89391.0,0.03415399]
[1764970448948,0.22373366,89392.0,89391.0,0.02230399]
[1764970450048,0.22373168,89393.0,89392.0,0.02230399]
[1764970450267,0.23491496,89395.0,89393.0,0.01599]
[1764970450413,0.23490685,89398.0,89397.0,0.02230399]
[1764970450414,0.01764,89398.0,89397.0,0.02230399]
[1764970450625,0.01764,89398.0,89397.0,0.03829399]
[1764970450825,0.01764,89398.0,89397.0,0.06321399]
[1764970451045,0.22371865,89398.0,89397.0,0.06321399]
[1764970451276,0.22371802,89399.0,89398.0,0.02230399]
[1764970451414,0.22371802,89399.0,89398.0,0.07466399]
[1764970454654,0.22371614,89399.0,89398.0,0.07466399]
[1764970454856,0.31223122,89400.0,89399.0,0.02230399]
[1764970455058,0.31223122,89400.0,89399.0,0.06321399]
[1764970455979,0.088517,89400.0,89399.0,0.28693013]
[1764970456183,0.31223064,89400.0,89399.0,0.06321399]
[1764970458651,0.088517,89400.0,89399.0,0.28693013]
[1764970459446,0.31223064,89400.0,89399.0,0.06321399]
[1764970460472,0.088517,89400.0,89399.0,0.28693013]
[1764970462436,0.088517,89400.0,89399.0,0.06321399]
[1764970462612,0.088517,89400.0,89399.0,0.28693013]
[1764970463286,0.088517,89400.0,89399.0,0.06321399]
[1764970463531,0.088517,89400.0,89399.0,0.28693013]
[1764970467931,0.31223064,89400.0,89399.0,0.06321399]
[1764970468165,0.088517,89400.0,89399.0,0.06321399]
[1764970470560,0.088517,89400.0,89399.0,0.04091]
[1764970470787,0.088517,89400.0,89399.0,0.06321403]
[1764970471513,0.31223064,89400.0,89399.0,0.06321403]
[1764970472356,0.31223064,89400.0,89399.0,0.03829403]
[1764970472826,0.31223064,89400.0,89399.0,0.06258403]
[1764970476387,0.088517,89400.0,89399.0,0.06258403]
[1764970477207,0.088517,89400.0,89399.0,0.28630017]
[1764970478660,0.088517,89400.0,89399.0,0.06258403]
[1764970479252,0.088517,89400.0,89399.0,0.26399614]
[1764970479452,0.088517,89400.0,89399.0,0.28630017]
[1764970479993,0.088517,89400.0,89399.0,0.06258403]
[1764970481467,0.088517,89400.0,89399.0,0.28630017]
[1764970482071,0.038517,89400.0,89399.0,0.38900781]
[1764970482223,0.038517,89400.0,89399.0,0.34882316]
[1764970483233,0.038517,89400.0,89399.0,0.34982316]
[1764970483606,0.038517,89400.0,89399.0,0.36746316]
[1764970483812,0.038517,89400.0,89399.0,0.36646316]
[1764970484025,0.038517,89400.0,89399.0,0.36746316]
[1764970484176,0.038517,89400.0,89399.0,0.37046316]
[1764970484594,0.038517,89400.0,89399.0,0.36646316]
[1764970484761,0.038517,89400.0,89399.0,0.37046316]
[1764970485917,0.038517,89400.0,89399.0,0.52026316]
[1764970489214,0.038517,89400.0,89399.0,0.58036242]
[1764970489918,0.00128684,89417.0,89416.0,0.30850063]
[1764970490122,0.00128684,89417.0,89416.0,0.37439385]
[1764970490266,0.00128684,89417.0,89416.0,0.35208982]
[1764970490609,0.00128684,89417.0,89416.0,0.37439385]
[1764970491515,0.00128684,89417.0,89416.0,0.37539385]
[1764970492850,0.00128684,89417.0,89416.0,0.37439385]
[1764970493062,0.00128684,89417.0,89416.0,0.37539385]
[1764970494158,0.00128684,89417.0,89416.0,0.37739385]
[1764970498377,0.00128684,89417.0,89416.0,0.35508982]
[1764970498580,0.00128684,89417.0,89416.0,0.37739385]
[1764970502122,0.00128684,89417.0,89416.0,0.15372024]
[1764970502339,0.00128684,89417.0,89416.0,0.1760876]
[1764970502545,0.00128684,89417.0,89416.0,0.37739385]
[1764970508534,0.22495795,89417.0,89416.0,0.15372024]
[1764970508735,0.00128684,89417.0,89416.0,0.15372024]
[1764970508901,0.22495795,89417.0,89416.0,0.15372024]
[1764970509449,0.22495795,89417.0,89416.0,0.09119725]
[1764970510410,0.00128684,89417.0,89416.0,0.09119725]
[1764970510782,0.00128684,89417.0,89416.0,0.09019725]
[1764970510961,0.00128684,89417.0,89416.0,0.08819725]
[1764970511162,0.00128684,89417.0,89416.0,0.31195927]
[1764970511363,0.00128684,89417.0,89416.0,0.31295927]
[1764970515902,0.00128684,89417.0,89416.0,0.37548226]
[1764970517178,0.00128684,89417.0,89416.0,0.37448226]
[1764970517390,0.00128684,89417.0,89416.0,0.37648226]
[1764970518464,0.00128684,89417.0,89416.0,0.37748226]
[1764970519341,0.00128684,89417.0,89416.0,0.86692226]
[1764970519557,0.00128684,89417.0,89416.0,0.9004916]
[1764970520291,0.00128684,89417.0,89416.0,0.8994916]
[1764970520632,0.00128684,89417.0,89416.0,0.8974916]
[1764970521039,0.00128684,89417.0,89416.0,0.9004916]
[1764970521801,0.00128684,89417.0,89416.0,0.9014916]
[1764970524832,0.00128684,89417.0,89416.0,0.8984916]
[1764970525042,0.00128684,89417.0,89416.0,0.8974916]
[1764970525234,0.00128684,89417.0,89416.0,0.87818757]
[1764970525434,0.00128684,89417.0,89416.0,0.9004916]
[1764970527803,0.00128684,89417.0,89416.0,0.9001816]
[1764970543012,0.00128684,89417.0,89416.0,0.5771816]
[1764970543239,0.22495795,89417.0,89416.0,0.273345]
[1764970543640,0.22495795,89417.0,89416.0,0.23977566]
[1764970543836,0.22657082,89417.0,89416.0,0.05352566]
[1764970544035,0.22657082,89417.0,89416.0,0.04222566]
[1764970544412,0.22657082,89417.0,89416.0,0.02539244]
[1764970544612,0.22657082,89417.0,89416.0,0.00308841]
[1764970545178,0.57187485,89417.0,89416.0,8.841e-05]
[1764970547445,0.57387485,89417.0,89416.0,8.841e-05]
[1764970547647,0.68223305,89417.0,89416.0,8.841e-05]
[1764970552391,0.57387485,89417.0,89416.0,8.841e-05]
[1764970552599,0.59151485,89417.0,89416.0,8.841e-05]
[1764970560154,0.59151485,89417.0,89386.0,0.01683322]
[1764970560155,0.22374618,89387.0,89386.0,0.03913725]
[1764970560311,0.22374618,89387.0,89386.0,0.0391946]
[1764970560992,0.22374618,89387.0,89386.0,0.02236138]
[1764970560993,0.54674618,89387.0,89386.0,0.02236138]
[1764970561186,0.54674618,89387.0,89386.0,5.735e-05]
[1764970561392,0.58034014,89387.0,89386.0,5.735e-05]
[1764970563395,0.58134014,89387.0,89386.0,5.735e-05]
[1764970567325,0.58034014,89387.0,89386.0,5.735e-05]
[1764970570310,0.58234014,89387.0,89386.0,5.735e-05]
[1764970570690,0.58734014,89387.0,89386.0,5.735e-05]
[1764970570894,0.58734014,89387.0,89386.0,0.02236138]
[1764970571041,0.26434014,89387.0,89386.0,0.03780138]
[1764970571263,0.28198014,89387.0,89386.0,0.03780138]
[1764970571454,0.26434014,89387.0,89386.0,0.03780138]
[1764970571653,0.26234014,89387.0,89386.0,0.03780138]
[1764970572189,0.25734014,89387.0,89386.0,0.03780138]
[1764970572569,0.25734014,89387.0,89386.0,0.02236138]
[1764970573568,0.23492223,89392.0,89386.0,0.02236138]
[1764970573569,0.22372193,89397.0,89386.0,0.26413516]
[1764970573769,0.01118643,89394.0,89393.0,0.02230403]
[1764970573987,0.22371692,89399.0,89397.0,0.02230403]
[1764970574307,0.23490272,89399.0,89398.0,0.02230403]
[1764970574653,0.23490272,89399.0,89398.0,0.03774403]
[1764970574826,0.23490272,89399.0,89398.0,0.06263403]
[1764970575374,0.23490272,89399.0,89398.0,0.03774403]
[1764970575577,0.23490272,89399.0,89398.0,0.06263403]
[1764970575786,0.22372615,89395.0,89394.0,0.03403403]
[1764970575993,0.22371997,89398.0,89396.0,0.02230403]
[1764970576211,0.0111858,89399.0,89398.0,0.02230403]
[1764970576411,0.0111858,89399.0,89395.0,0.25980187]
[1764970576412,0.23490411,89399.0,89395.0,0.25980187]
[1764970576818,0.23488938,89404.0,89398.0,0.01544]
[1764970577019,0.01118493,89406.0,89405.0,0.02230403]
[1764970577229,0.23488227,89407.0,89400.0,0.02662568]
[1764970577230,0.25252227,89407.0,89403.0,0.01544]
[1764970577446,0.23488227,89407.0,89406.0,0.02230403]
[1764970580221,0.25251772,89409.0,89399.0,0.05290902]
[1764970580222,0.25251772,89409.0,89403.0,0.0111853]
[1764970580424,0.25251772,89409.0,89399.0,0.04172322]
[1764970580425,0.23486072,89415.0,89414.0,0.02230403]
[1764970581645,0.23486072,89415.0,89414.0,0.02236138]
[1764970581849,0.23586072,89415.0,89414.0,0.02236138]
[1764970582182,0.001,89415.0,89414.0,0.04038735]
[1764970582379,0.001,89415.0,89414.0,0.06269138]
[1764970582709,0.002,89415.0,89414.0,0.06269138]
[1764970583089,0.001,89415.0,89414.0,0.06269138]
[1764970583530,0.2361431,89417.0,89414.0,0.26406574]
[1764970583731,0.2361431,89417.0,89416.0,0.02230403]
[1764970585540,0.22367611,89415.0,89414.0,0.02236138]
[1764970589962,0.22528898,89415.0,89414.0,5.735e-05]
[1764970591755,0.22728898,89415.0,89414.0,5.735e-05]
[1764970592511,0.22728898,89415.0,89414.0,0.02236138]
[1764970593142,0.22628898,89415.0,89414.0,0.02236138]
[1764970593342,0.22528898,89415.0,89414.0,0.02236138]
[1764970593597,0.22528898,89415.0,89414.0,0.06065138]
[1764970593799,0.22528898,89415.0,89414.0,0.02236138]
[1764970596434,0.22528898,89415.0,89414.0,5.735e-05]
[1764970598312,0.22628898,89415.0,89414.0,5.735e-05]
[1764970599561,0.22728898,89415.0,89414.0,5.735e-05]
[1764970601396,0.55028898,89415.0,89414.0,5.735e-05]
[1764970601714,0.64760308,89415.0,89414.0,5.735e-05]
[1764970602264,0.67489582,89415.0,89414.0,5.735e-05]
[1764970603111,0.22374868,89386.0,89385.0,0.01683322]
[1764970603285,0.22374868,89386.0,89385.0,0.01689059]
[1764970604402,0.22374868,89386.0,89385.0,0.00105737]
[1764970608736,0.22374868,89386.0,89385.0,0.05608059]
[1764970608941,0.22374868,89386.0,89385.0,0.03924737]
[1764970609137,0.22374868,89386.0,89385.0,0.01645737]
[1764970609737,0.22374868,89386.0,89385.0,0.00105737]
[1764970610598,0.22374868,89386.0,89385.0,0.03924737]
[1764970611576,0.2349358,89388.0,89387.0,0.02230403]
[1764970611791,0.2349358,89388.0,89387.0,0.03770403]
[1764970611991,0.2349358,89388.0,89387.0,0.06049403]
[1764970613435,0.2349358,89388.0,89387.0,0.06149403]
[1764970616900,0.2349358,89388.0,89387.0,0.02330403]
[1764970617732,0.2349358,89388.0,89387.0,0.001]
[1764970618350,0.2525758,89388.0,89387.0,0.001]
[1764970619681,0.22374868,89386.0,89385.0,5.737e-05]
[1764970621270,0.22474868,89386.0,89385.0,5.737e-05]
[1764970621470,0.22474868,89386.0,89385.0,0.0377614]
[1764970621665,0.22474868,89386.0,89385.0,0.0223614]
[1764970622277,0.22574868,89386.0,89385.0,0.0223614]
[1764970622703,0.22474868,89386.0,89385.0,0.0223614]
[1764970622903,0.22374868,89386.0,89385.0,0.0223614]
[1764970630059,0.22374868,89386.0,89385.0,0.0382014]
[1764970630264,0.22374868,89386.0,89385.0,0.0223614]
[1764970632535,0.22374868,89386.0,89385.0,0.0382014]
[1764970632762,0.22374868,89386.0,89385.0,0.0623314]
[1764970634060,0.22374868,89386.0,89385.0,0.0633314]
[1764970638314,0.22374868,89386.0,89385.0,0.00105737]
[1764970640170,0.64472725,89386.0,89385.0,5.737e-05]
[1764970640573,0.55122824,89386.0,89385.0,0.00105737]
[1764970640913,0.55122824,89386.0,89385.0,5.737e-05]
[1764970641197,0.55322824,89386.0,89385.0,5.737e-05]
[1764970645350,0.22378623,89371.0,89370.0,0.01293275]
[1764970645643,0.22385253,89371.0,89370.0,0.01293275]
[1764970645820,0.22385253,89371.0,89370.0,0.01329605]
[1764970646021,0.22385253,89371.0,89370.0,0.0003633]
[1764970646246,0.54685253,89371.0,89370.0,0.0003633]
[1764970646746,0.56915656,89371.0,89370.0,0.0003633]
[1764970647007,0.58679656,89371.0,89370.0,0.0003633]
[1764970647419,0.58679656,89371.0,89370.0,0.0013633]
[1764970648506,0.69650162,89371.0,89370.0,0.0013633]
[1764970648715,0.69650162,89371.0,89370.0,0.0003633]
[1764970648916,0.70696345,89371.0,89370.0,0.0003633]
[1764970649147,0.70857632,89371.0,89370.0,0.0013633]
[1764970649369,0.59887126,89371.0,89370.0,0.0013633]
[1764970649583,0.60524265,89371.0,89370.0,0.0013633]
[1764970650241,0.60524265,89371.0,89370.0,0.0003633]
[1764970651679,0.61024265,89371.0,89370.0,0.0003633]
[1764970651877,0.61224265,89371.0,89370.0,0.0003633]
[1764970652110,0.61228265,89371.0,89370.0,0.0003633]
[1764970652297,0.66194482,89371.0,89370.0,0.0003633]
[1764970660230,0.67238472,89371.0,89370.0,0.0003633]
[1764970660657,0.67238472,89371.0,89360.0,0.0004]
[1764970660658,0.54681128,89361.0,89360.0,0.0004]
[1764970660858,0.54683633,89351.0,89330.0,0.0004]
[1764970661017,0.56451633,89351.0,89330.0,0.0004]
[1764970661220,0.568998,89351.0,89330.0,0.0004]
[1764970663503,0.570998,89351.0,89330.0,0.0004]
[1764970663710,0.575998,89351.0,89330.0,0.0004]
[1764970664027,0.68570306,89351.0,89330.0,0.0004]
[1764970665366,0.66802306,89351.0,89330.0,0.0004]
[1764970665721,0.68570306,89351.0,89330.0,0.0004]
[1764970667281,0.69613008,89351.0,89330.0,0.0004]
[1764970667687,0.69613008,89351.0,89350.0,0.00100568]
[1764970669623,0.69613428,89351.0,89350.0,0.00100568]
[1764970670166,0.54686138,89341.0,89330.0,0.0004]
[1764970670367,0.56454138,89341.0,89330.0,0.0004]
[1764970670816,0.56902374,89341.0,89330.0,0.0004]
[1764970671322,0.56902374,89341.0,89340.0,0.00079628]
[1764970671878,0.22388644,89331.0,89330.0,0.0004]
[1764970672082,0.56456644,89331.0,89330.0,0.00047979]
[1764970672529,0.56904929,89331.0,89330.0,0.00047979]
[1764970673350,0.56904929,89331.0,89320.0,0.0004]
[1764970673351,0.54691151,89321.0,89320.0,0.0004]
[1764970673569,0.56459151,89321.0,89320.0,0.0004]
[1764970673946,0.60368901,89321.0,89320.0,0.0004]
[1764970674123,0.60817227,89321.0,89320.0,0.0004]
[1764970674726,0.60817227,89321.0,89320.0,0.0034]
[1764970675488,0.60978514,89321.0,89320.0,0.0034]
[1764970676263,0.64260988,89321.0,89320.0,0.0034]
[1764970676455,0.62020988,89321.0,89320.0,0.0034]
[1764970676648,0.62020988,89321.0,89320.0,0.00430892]
[1764970676852,0.62220988,89321.0,89320.0,0.00430892]
[1764970677096,0.62220988,89321.0,89320.0,0.00130892]
[1764970677495,0.62420988,89321.0,89320.0,0.00130892]
[1764970677700,0.62420043,89321.0,89320.0,0.00130892]
[1764970677908,0.60652043,89321.0,89320.0,0.00130892]
[1764970678071,0.62420043,89321.0,89320.0,0.00130892]
[1764970678725,0.6241977,89321.0,89320.0,0.00130892]
[1764970678928,0.22393658,89311.0,89300.0,0.0004]
[1764970679107,0.54696165,89301.0,89300.0,0.0004]
[1764970679317,0.56464165,89301.0,89300.0,0.0004]
[1764970679516,0.22398673,89291.0,89290.0,0.0004]
[1764970679717,0.24166673,89291.0,89290.0,0.0004]
[1764970681096,0.24615103,89291.0,89290.0,0.0004]
[1764970681625,0.24615103,89291.0,89290.0,0.0024]
[1764970682655,0.56915103,89291.0,89290.0,0.0024]
[1764970683681,0.55147103,89291.0,89290.0,0.0024]
[1764970684092,0.56915103,89291.0,89290.0,0.0024]
[1764970684297,0.55147103,89291.0,89290.0,0.04214]
[1764970684716,0.55147103,89291.0,89290.0,0.01887]
[1764970685084,0.22847103,89291.0,89290.0,0.01977938]
[1764970685289,0.22847103,89291.0,89290.0,0.04304938]
[1764970685842,0.22847103,89291.0,89290.0,0.01977938]
[1764970688778,0.22847103,89291.0,89290.0,0.00330938]
[1764970690709,0.55147103,89291.0,89290.0,0.00330938]
[1764970692737,0.22847103,89291.0,89290.0,0.00330938]
[1764970693079,0.24615103,89291.0,89290.0,0.00330938]
[1764970693506,0.22847103,89291.0,89290.0,0.01989827]
[1764970693709,0.22847103,89291.0,89290.0,0.04316827]
[1764970693911,0.24615103,89291.0,89290.0,0.04316827]
[1764970694114,0.22847103,89291.0,89290.0,0.04316827]
[1764970694535,0.22847103,89291.0,89290.0,0.0654723]
[1764970695013,0.22847103,89291.0,89290.0,0.0257323]
[1764970695221,0.22847103,89291.0,89290.0,0.00342827]
[1764970695377,0.22847103,89291.0,89290.0,0.0257323]
[1764970695576,0.22398673,89291.0,89290.0,0.0257323]
[1764970699201,0.22398673,89291.0,89290.0,0.00342827]
[1764970699404,0.22398673,89291.0,89290.0,0.0257323]
[1764970701699,0.22398673,89291.0,89290.0,0.00342827]
[1764970703127,0.22398673,89291.0,89290.0,0.04116827]
[1764970703327,0.22398673,89291.0,89290.0,0.0634723]
[1764970703545,0.22398673,89291.0,89290.0,0.0442023]
[1764970703957,0.22398673,89291.0,89290.0,0.0674723]
[1764970707500,0.01119883,89295.0,89294.0,0.02230403]
[1764970707743,0.01119883,89295.0,89290.0,0.05636773]
[1764970707744,0.01119808,89301.0,89298.0,0.02230403]
[1764970707933,0.01119758,89305.0,89296.0,0.0111987]
[1764970707934,0.23516205,89302.0,89301.0,0.06755725]
[1764970708343,0.23516205,89302.0,89301.0,0.09082725]
[1764970709264,0.22395669,89303.0,89301.0,0.09082725]
[1764970709504,0.22395669,89303.0,89302.0,0.04557403]
[1764970709703,0.22395669,89303.0,89302.0,0.06204403]
[1764970709906,0.0111977,89304.0,89302.0,0.03974]
[1764970710085,0.23515214,89304.0,89303.0,0.06204403]
[1764970710538,0.23515182,89305.0,89303.0,0.26369548]
[1764970710747,0.23515182,89305.0,89304.0,0.06204403]
[1764970711479,0.23515182,89305.0,89304.0,0.03877403]
[1764970711677,0.22395413,89304.0,89303.0,0.02430403]
[1764970712063,0.22395413,89304.0,89303.0,0.02230403]
[1764970713129,0.22395413,89304.0,89303.0,0.03881403]
[1764970713534,0.22395413,89304.0,89303.0,0.06365927]
[1764970714153,0.22395413,89304.0,89303.0,0.06565927]
[1764970715290,0.23515182,89305.0,89303.0,0.06565927]
[1764970715465,0.23515182,89305.0,89304.0,0.04084]
[1764970716507,0.22395914,89302.0,89301.0,0.01195]
[1764970716713,0.2239767,89295.0,89294.0,0.04116322]
[1764970716947,0.2239767,89295.0,89294.0,0.06346725]
[1764970717140,0.2239767,89295.0,89294.0,0.07997725]
[1764970717939,0.2239767,89295.0,89294.0,0.08297725]
[1764970718350,0.2239767,89295.0,89294.0,0.03634322]
[1764970718799,0.2239767,89295.0,89294.0,0.03734322]
[1764970719005,0.2239767,89295.0,89294.0,0.05964725]
[1764970719621,0.2239767,89295.0,89294.0,0.08397725]
[1764970720276,0.2239767,89295.0,89294.0,0.03734322]
[1764970720673,0.2239767,89295.0,89294.0,0.05964725]
[1764970722297,0.2239767,89295.0,89294.0,0.04281403]
[1764970722657,0.2239767,89295.0,89294.0,0.04360213]
[1764970723064,0.2239767,89295.0,89294.0,0.06793213]
[1764970732667,0.2239767,89295.0,89294.0,0.0456281]
[1764970735128,0.22397013,89298.0,89296.0,0.0111987]
[1764970735335,0.23516571,89299.0,89298.0,0.03860403]
[1764970735536,0.23516571,89299.0,89298.0,0.06176403]
[1764970737394,0.23516571,89299.0,89298.0,0.06376403]
[1764970738614,0.25,89300.0,89299.0,0.02230403]
[1764970738801,0.4739646,89300.0,89299.0,0.07399403]
[1764970739417,0.25,89300.0,89299.0,0.07399403]
[1764970739822,0.25,89300.0,89299.0,0.2979607]
[1764970740729,0.25,89300.0,89299.0,0.2999607]
[1764970741181,0.25,89300.0,89299.0,0.36248369]
[1764970741373,0.25,89300.0,89299.0,0.40256945]
[1764970741553,0.25,89300.0,89299.0,0.36248369]
[1764970742055,0.25,89300.0,89299.0,0.42059426]
[1764970742257,0.25,89300.0,89299.0,0.74359426]
[1764970742431,0.25,89300.0,89299.0,0.68848369]
[1764970743607,0.25,89300.0,89299.0,0.68348369]
[1764970744198,0.25,89300.0,89299.0,0.68948369]
[1764970744618,0.25,89300.0,89299.0,0.68848369]
[1764970745003,0.25,89300.0,89299.0,0.69048369]
[1764970745156,0.25,89300.0,89299.0,0.68548369]
[1764970745358,0.25,89300.0,89299.0,0.68348369]
[1764970745558,0.25,89300.0,89299.0,0.68948369]
[1764970745763,0.25,89300.0,89299.0,0.69148369]
[1764970746165,0.24828713,89300.0,89299.0,2.06574555]
[1764970746368,0.24828713,89300.0,89299.0,2.09212055]
[1764970746570,0.24828713,89300.0,89299.0,1.81427455]
[1764970747194,0.24828713,89300.0,89299.0,1.63591519]
[1764970747610,0.24828713,89300.0,89299.0,1.78471519]
[1764970747755,0.24828713,89300.0,89299.0,1.07922519]
[1764970750183,0.24828713,89300.0,89299.0,1.09690519]
[1764970752660,0.24828713,89300.0,89299.0,1.15704884]
[1764970753205,0.24828713,89300.0,89299.0,1.13936884]
[1764970753402,0.24828713,89300.0,89299.0,1.15704884]
[1764970754314,0.24828713,89300.0,89299.0,1.09690519]
[1764970754514,0.24828713,89300.0,89299.0,1.15704884]
[1764970758160,0.24828713,89300.0,89299.0,1.13936884]
[1764970758399,0.24828713,89300.0,89299.0,1.15704884]
[1764970758599,0.24828713,89300.0,89299.0,1.09690519]
[1764970759907,0.24828713,89300.0,89299.0,1.11728519]
[1764970760059,0.24828713,89300.0,89299.0,1.11928519]
[1764970760486,0.24828713,89300.0,89299.0,1.11328519]
[1764970760699,0.24828713,89300.0,89299.0,1.11728519]
[1764970760898,0.24828713,89300.0,89299.0,1.09960519]
[1764970761121,0.24828713,89300.0,89299.0,1.11728519]
[1764970765915,0.24828713,89300.0,89299.0,0.28229317]
[1764970766125,0.24828713,89300.0,89299.0,0.2814372]
[1764970766352,0.24828713,89300.0,89299.0,0.08235053]
[1764970766783,0.24828713,89300.0,89299.0,0.08035053]
[1764970766977,0.24828713,89300.0,89299.0,0.3003172]
[1764970767181,0.24828713,89300.0,89299.0,0.3013172]
[1764970767789,0.24828713,89300.0,89299.0,0.3003172]
[1764970769043,0.24828713,89300.0,89299.0,0.31715042]
[1764970769264,0.24828713,89300.0,89299.0,0.31815042]
[1764970770037,0.24828713,89300.0,89299.0,0.29584639]
[1764970770239,0.24828713,89300.0,89299.0,0.31815042]
[1764970771929,0.24828713,89300.0,89299.0,0.09418375]
[1764970772131,0.47225129,89300.0,89299.0,0.09418375]
[1764970772356,0.24828713,89300.0,89299.0,0.09418375]
[1764970773032,0.47225129,89300.0,89299.0,0.09418375]
[1764970775443,0.24828713,89300.0,89299.0,0.09418375]
[1764970775837,0.47225129,89300.0,89299.0,0.09418375]
[1764970777646,0.24828713,89300.0,89299.0,0.09418375]
[1764970778293,0.24828713,89300.0,89299.0,0.31815042]
[1764970778977,0.24828713,89300.0,89299.0,0.29584639]
[1764970779187,0.24828713,89300.0,89299.0,0.31815042]